[Event "FIDE WY-U16 Olympiad 2022"]
[Site "Nakhchivan"]
[Date "2022.10.05"]
[Round "4.5"]
[White "Cebotari, Stanislav"]
[Black "Davudov, Tunar"]
[Result "0-1"]
[ECO "A05"]
[WhiteElo "2047"]
[BlackElo "2043"]
[Annotator "TA"]
[PlyCount "140"]
[EventDate "2022.10.02"]
[EventType "team-tourn"]
[EventCountry "AZE"]
[SourceTitle "playchess.com"]
[Source "ChessBase"]
[SourceQuality "1"]
[WhiteTeam "Moldova"]
[BlackTeam "Azerbaijan"]
[WhiteTeamCountry "MDA"]
[BlackTeamCountry "AZE"]
[TimeControl "40/5400+30:1800+30"]

{[%evp 13,140,-21,-24,-31,-13,0,0,0,-2,-29,-17,-14,-17,-33,-32,-38,0,0,0,0,0,0,0,0,22,0,8,5,25,0,0,0,0,0,0,0,0,-42,-41,-49,-60,-106,-99,-102,-82,-93,-27,-25,0,-10,-1,-28,-13,-21,-24,-923,-923,-920,-919,-919,-919,-901,-876,-786,-786,-6307,-687,-670,-584,-581,-567,-644,-604,-981,-944,-2636,-1589,-29967,-29967,-29964,-29965,-29974,-29975,-29978,-29976,-29978,-29977,-29973,-29973,-29974,-29972,-29972,-29973,-29972,-29974,-29971,-29969,-29970,-29968,-29973,-29974,-29973,-29974,-29975,-29975,-29979,-29980,-29973,-29973,-29971,-29964,-29964,-29963,-29964,-29960,-29965,-29955,-29988,-29959,-29986,-29986,-29986,-29987,-29994,-29979,-29993,-29994,-29995,-29996]} 1. Nf3 {[%emt 0:00:02]} Nf6 {[%emt 0:00:37]} 2. g3 {[%emt 0:00:06]} d5 {[%emt 0:00:11]} 3. Bg2 {[%emt 0:00:07]} c5 {[%emt 0:00:09]} 4. d3 {[%emt 0:00:14]} Nc6 {[%emt 0:00:10]} 5. O-O {[%emt 0:00:09]} e5 {[%emt 0:00:12]} 6. Nbd2 {[%emt 0:00:50]} Be7 {[%emt 0:00:25]} 7. e4 {[%emt 0:00:08]} O-O {[%emt 0:03:45]} 8. Re1 {[%emt 0:01:11] A08: King's Indian Attack.} dxe4 {[%emt 0:00:45]} 9. dxe4 {[%emt 0:00:31]} Qc7 {[%emt 0:00:53]} 10. c3 {[%emt 0:00:10] The position is equal.} Rd8 {[%emt 0:04:47]} 11. Qc2 {[%emt 0:00:07]} h6 {[%emt 0:01:51]} 12. Nc4 {[%emt 0:01:42][%cal Bd2c4,Bc4e3,Be3d5][%mdl 32]} Be6 {[%emt 0:06:07]} 13. Ne3 {[%emt 0:00:43]} c4 {[%emt 0:02:34] [#]} 14. Nd2 $146 {[%emt 0:01:24][%cal Bf3d2,Bd2f1,Bf1e3][%mdl 32]} ({Predecessor:} 14. Nf5 Bf8 15. Be3 Ng4 16. h3 Nxe3 17. Nxe3 Bc5 18. Kh2 Rd7 19. Nd2 Bxe3 20. Rxe3 {1-0 (54) Osmanodja,F (2295)-Humburg,P (2087) Dresden 2014}) 14... b5 {[%emt 0:02:22]} 15. a4 {[%emt 0:00:58]} a6 {[%emt 0:05:18]} 16. axb5 {[%emt 0:01:43]} axb5 {[%emt 0:00:01]} 17. Rxa8 {[%emt 0:00:06]} Rxa8 {[%emt 0:00:08]} 18. Nd5 {[%emt 0:00:36]} Qd6 {[%emt 0:02:40][%cal Rf6d5]} 19. Nf1 {[%emt 0:06:55]} (19. Rd1 $5 {[%cal Rd2c4]}) 19... Bd8 {[%emt 0:22:24]} ({Don't take} 19... Nxd5 20. exd5 Bxd5 21. Rd1 $16) 20. Nfe3 {[%emt 0:02:07]} Bxd5 {[%emt 0:00:58]} 21. exd5 {[%emt 0:01:57]} Ne7 {[%emt 0:00:58]} 22. b3 {[%emt 0:06:58]} Bb6 {[%emt 0:13:51]} 23. bxc4 {[%emt 0:02:06]} Bxe3 {[%emt 0:00:21]} 24. Bxe3 {[%emt 0:00:30]} bxc4 {[%emt 0:00:37]} 25. Rd1 {[%emt 0:11:49]} Nexd5 {[%emt 0:07:47]} 26. Qd2 {[%emt 0:03:03][%cal Rg2d5]} Rd8 {[%emt 0:05:41]} 27. f4 {[%emt 0:05:24] [#]} (27. Qc2 $15) 27... exf4 $1 $17 {[%emt 0:02:26]} 28. Bxf4 {[%emt 0:02:52]} Qe6 {[%emt 0:07:52] And now ...Rd7 would win.} 29. Be3 {[%emt 0:08:28]} Re8 {[%emt 0:06:32] Black is more active.} (29... Ne4 $17 30. Bxe4 Qxe4) 30. Bf2 $11 {[%emt 0:00:33][%cal Rg2d5] This bishop pair is nice.} Rd8 {[%emt 0:01:43]} (30... Ne3 $2 31. Re1 $18) 31. Re1 {[%emt 0:00:29] Inhibits Ne4.} Qd6 {[%emt 0:01:06]} 32. Qd4 {[%emt 0:00:40]} Qa6 {[%emt 0:00:41]} 33. Rd1 {[%emt 0:01:26]} Rd7 {[%emt 0:00:23]} 34. Bh3 $2 {[%emt 0:00:11][%mdl 8192] [#] Loses the game.} (34. Rb1 $11) 34... Nxc3 $1 $19 {[%emt 0:00:12][%mdl 512]} 35. Qxd7 {[%emt 0:00:27]} Nxd7 {[%emt 0:00:06]} 36. Rxd7 {[%emt 0:00:07]} Qa1+ {[%emt 0:00:16]} 37. Kg2 {[%emt 0:00:12]} Qa8+ {[%emt 0:00:03]} 38. Kg1 {[%emt 0:00:05]} Qe4 {[%emt 0:00:32]} 39. Bg2 {[%emt 0:01:20]} Qe6 {[%emt 0:00:07]} (39... Qb1+ $142 40. Bf1 Ne2+ 41. Kg2 Qe4+ 42. Kh3 Qe6+ 43. g4 Qxd7 44. Bxe2 Qd2 45. Bd1 Qxf2 46. g5 hxg5 47. Kg4 Qg1+ 48. Kh3 Qxd1 49. Kg3 c3 50. h4 c2 51. Kh3 c1=Q 52. hxg5 Qxg5 53. Kh2 Qdh5#) 40. Rd2 {[%emt 0:01:08]} Ne4 {[%emt 0:00:42]} 41. Re2 {[%emt 0:30:08]} f5 {[%emt 0:30:08]} 42. g4 {[%emt 0:00:11]} g6 {[%emt 0:00:13][%cal Bg7g6,Bg6f5,Bf5e4][%mdl 32]} 43. h4 {[%emt 0:00:23]} c3 {[%emt 0:01:07] ...Qc4 is the strong threat.} 44. gxf5 gxf5 {[%emt 0:00:07] Threatens to win with ...Qc4.} 45. Bxe4 {[%emt 0:00:32]} fxe4 {[%emt 0:00:07] KQ-KRB. Black mates.} 46. Be3 {[%emt 0:00:02]} Qc4 {[%emt 0:00:30]} 47. Kf2 {[%emt 0:00:18]} h5 {[%emt 0:00:53]} 48. Bg5 {[%emt 0:00:49]} c2 {[%emt 0:00:11]} 49. Re1 {[%emt 0:00:01]} Qd3 {[%emt 0:00:36]} 50. Be3 {[%emt 0:00:44]} Qd1 {[%emt 0:00:06]} 51. Bg5 {[%emt 0:00:14]} Kf7 {[%emt 0:00:19]} 52. Rxe4 {[%emt 0:02:50]} c1=Q {[%emt 0:01:40]} 53. Bxc1 {[%emt 0:00:05]} Qxc1 {[%emt 0:00:11] KQ-KR} 54. Kf3 {[%emt 0:00:49]} Qh1+ {[%emt 0:00:11]} 55. Ke3 {[%emt 0:00:05]} Qg2 {[%emt 0:00:22]} 56. Kf4 {[%emt 0:01:21]} Kf6 {[%emt 0:00:08][%cal Rg2f2]} 57. Ke3 {[%emt 0:00:55]} Qg3+ {[%emt 0:00:17]} 58. Ke2 {[%emt 0:00:32]} Kf5 {[%emt 0:00:05]} 59. Rd4 {[%emt 0:00:11]} Ke5 {[%emt 0:00:53]} 60. Rc4 {[%emt 0:00:03]} Kd5 {[%emt 0:01:05]} 61. Rb4 {[%emt 0:00:16]} Qg2+ {[%emt 0:00:29]} 62. Ke3 {[%emt 0:00:30]} Qg1+ {[%emt 0:00:31]} 63. Ke2 {[%emt 0:00:07]} Ke5 {[%emt 0:01:49]} 64. Rc4 {[%emt 0:00:23]} Kf5 {[%emt 0:00:18]} 65. Rb4 {[%emt 0:00:31]} Qa1 {[%emt 0:00:41]} 66. Kf2 {[%emt 0:01:01]} Qc3 {[%emt 0:00:12]} 67. Rb5+ {[%emt 0:00:35]} Kg4 {[%emt 0:00:15]} 68. Rd5 {[%emt 0:00:25]} Qb2+ {[%emt 0:00:28]} 69. Kg1 {[%emt 0:00:16]} Qb1+ {[%emt 0:00:05]} 70. Kh2 {[%emt 0:00:24]} Qa2+ {[%emt 0:00:04] Weighted Error Value: White=0.47/Black=0.31} 0-1

[Event "FIDE WY-U16 Olympiad 2022"]
[Site "Nakhchivan"]
[Date "2022.10.05"]
[Round "4.6"]
[White "Akin, Yagiz Cinar"]
[Black "Kairbekova, Amina"]
[Result "0-1"]
[ECO "A50"]
[WhiteElo "2249"]
[BlackElo "2231"]
[Annotator "TA"]
[PlyCount "54"]
[EventDate "2022.10.02"]
[EventType "team-tourn"]
[EventCountry "AZE"]
[SourceTitle "playchess.com"]
[Source "ChessBase"]
[SourceQuality "1"]
[WhiteTeam "Turkey"]
[BlackTeam "Kazakhstan"]
[WhiteTeamCountry "TUR"]
[BlackTeamCountry "KAZ"]
[TimeControl "40/5400+30:1800+30"]

{[%evp 17,54,50,36,42,74,61,45,39,23,35,36,41,44,15,27,-56,-57,-57,-42,-233,-241,-239,-227,-291,-208,-304,-289,-293,-281,-279,-245,-758,-679,-1706,-1665,-6652,-6800,-6152,-6080]} 1. d4 {[%emt 0:00:08]} Nf6 {[%emt 0:00:09]} 2. c4 {[%emt 0:00:12]} g6 {[%emt 0:00:11]} 3. f3 {[%emt 0:00:59]} Bg7 {[%emt 0:00:14]} 4. e4 {[%emt 0:00:04]} d6 {[%emt 0:00:11]} 5. Be3 {[%emt 0:00:56]} O-O {[%emt 0:00:33]} 6. Nc3 {[%emt 0:01:12]} c5 {[%emt 0:00:47]} 7. Nge2 {[%emt 0:00:51]} Nc6 {[%emt 0:00:42]} 8. d5 {[%emt 0:00:09]} Ne5 {[%emt 0:00:08]} 9. Ng3 {[%emt 0:00:03]} h5 {[%emt 0:00:29][%cal Bh7h5,Bh5h4,Bh4h3][%mdl 32] And now ...h4 would win.} 10. Be2 {[%emt 0:00:03] E81: King's Indian: Sämisch: 6th move deviations (including 6 Be3 c6).} h4 {[%emt 0:00:26]} 11. Nf1 {[%emt 0:00:05]} e6 {[%emt 0:00:58]} 12. Nd2 {[%emt 0:00:21] White is slightly better.} exd5 {[%emt 0:02:21]} 13. cxd5 {[%emt 0:00:04]} (13. Nxd5 Nxd5 14. cxd5 f5 $15) 13... h3 {[%emt 0:00:40]} 14. g3 {[%emt 0:08:50]} a6 {[%emt 0:00:56]} 15. a4 {[%emt 0:00:38]} Bd7 {[%emt 0:01:18][%cal Ob7b5]} 16. g4 {[%emt 0:17:25] [#]} (16. a5) ({White should play} 16. a5 $11) 16... Bxg4 $1 $15 {[%emt 0:10:43]} 17. fxg4 {[%emt 0:19:52]} Nfxg4 {[%emt 0:00:13]} 18. Nf1 $2 {[%emt 0:09:09] [#] This move loses the game for White.} (18. Bf4 $15 Bh6 19. Bxe5 (19. Bxg4 $2 Bxf4 20. Qe2 Qh4+ 21. Kd1 Qxg4 $19) 19... Nxe5 20. Nf3) 18... Nxe3 $146 {[%emt 0:24:18]} ({Predecessor:} 18... Qh4+ 19. Kd2 f5 20. Bxg4 Nxg4 21. Rg1 Ne5 22. exf5 b5 23. axb5 axb5 24. Rxa8 Rxa8 25. Rxg6 Nxg6 26. fxg6 {0-1 (33) Smirnova,E (2178)-Utiatskaja,I (2214) Moscow 2019}) 19. Nxe3 {[%emt 0:00:03]} Bh6 {[%emt 0:00:07]} 20. Nf1 {[%emt 0:00:51]} Qh4+ {[%emt 0:00:39]} 21. Ng3 {[%emt 0:00:44]} f5 {[%emt 0:00:16]} 22. exf5 {[%emt 0:00:44]} Rxf5 {[%emt 0:13:45] Threatens to win with ...Re8.} (22... gxf5 23. O-O Be3+ 24. Kh1 $11) 23. Nce4 {[%emt 0:04:45] [#]} ({Much worse is} 23. Rf1 Rxf1+ 24. Kxf1 Be3 $19) 23... Re8 $1 {[%emt 0:00:26][%cal Oe5g4] ...Ng4! is the strong threat.} ({And not} 23... Raf8 24. Ra3 $15) 24. Qc2 $2 {[%emt 0:19:20]} (24. Rf1) 24... Nf3+ {[%emt 0:03:31][%mdl 64] Discovered Attack. Black is clearly winning.} 25. Kd1 {[%emt 0:02:38]} Rxd5+ {[%emt 0:01:33]} 26. Bd3 {[%emt 0:01:21]} Rxe4 {[%emt 0:01:52]} 27. Nxe4 {[%emt 0:00:38]} Qxe4 {[%emt 0:00:06] Weighted Error Value: White=1.24/Black=0.08 (flawless)} 0-1

[Event "FIDE WY-U16 Olympiad 2022"]
[Site "Nakhchivan"]
[Date "2022.10.05"]
[Round "4.6"]
[White "Israilov, Agil"]
[Black "Triboi, Alexander"]
[Result "1-0"]
[ECO "C60"]
[WhiteElo "1883"]
[BlackElo "1974"]
[Annotator "TA"]
[PlyCount "53"]
[EventDate "2022.10.02"]
[EventType "team-tourn"]
[EventCountry "AZE"]
[SourceTitle "playchess.com"]
[Source "ChessBase"]
[SourceQuality "1"]
[WhiteTeam "Azerbaijan"]
[BlackTeam "Moldova"]
[WhiteTeamCountry "AZE"]
[BlackTeamCountry "MDA"]
[TimeControl "40/5400+30:1800+30"]

{[%evp 9,53,-60,-84,-93,-89,-104,-55,-73,-60,-57,-37,-42,-43,-66,-63,-64,-50,-39,-38,-38,-26,-21,0,-1,181,184,180,181,183,172,191,183,380,368,1763,1763,1648,1588,1483,447,1416,441,426,405,904,900]} 1. e4 {[%emt 0:00:22]} e5 {[%emt 0:00:09][%cal Be7e5,Be5d4][%mdl 32]} 2. Nf3 {[%emt 0:00:09]} Nc6 {[%emt 0:00:05]} 3. Bb5 {[%emt 0:00:12]} g6 {[%emt 0:00:21]} 4. Nc3 {[%emt 0:07:31]} Bg7 {[%emt 0:00:55]} 5. d4 {[%emt 0:02:37]} Nxd4 {[%emt 0:14:56]} 6. Nxd4 {[%emt 0:00:18] C60: Ruy Lopez: Unusual Black 3rd moves and 3...g6.} exd4 {[%emt 0:00:01]} 7. Ne2 {[%emt 0:00:12] [#]} c5 $146 {[%emt 0:05:44]} ({Black should play} 7... c6 $17 {aiming for ...Qa5+.} 8. Bc4 Qa5+ 9. Qd2 Qc5) ({Predecessor:} 7... c6 8. Bc4 Nf6 9. Qxd4 O-O 10. Bd3 d5 11. e5 Ng4 12. f4 f6 13. exf6 Bxf6 {0-1 (28) Abdumalik,Z (2478)-Lagno,K (2546) Chess.com INT 2020}) 8. O-O {[%emt 0:03:27] Black is slightly better.} Ne7 {[%emt 0:07:11]} 9. c3 {[%emt 0:09:23][%cal Rc3d4]} O-O {[%emt 0:15:42]} 10. cxd4 {[%emt 0:12:50]} cxd4 {[%emt 0:00:15]} 11. Bg5 {[%emt 0:05:02]} h6 {[%emt 0:06:11]} 12. Bh4 {[%emt 0:00:28]} g5 {[%emt 0:01:38]} 13. Bg3 {[%emt 0:00:21]} d5 {[%emt 0:00:24]} 14. e5 {[%emt 0:04:07]} Nf5 {[%emt 0:01:46]} 15. Re1 {[%emt 0:03:12]} f6 {[%emt 0:13:45]} (15... Qb6 $5 {[%cal Rb6b5]} 16. Bd3 Qxb2 $15) 16. e6 {[%emt 0:03:58]} Qb6 {[%emt 0:08:36] [#] This costs Black the game.} (16... Bxe6 $11 {and Black stays safe.} 17. Nxd4 Nxd4 18. Qxd4 Bf7) 17. Nxd4 $1 $18 {[%emt 0:02:58][%mdl 576] Deflection} Nxd4 {[%emt 0:11:00]} 18. e7 {[%emt 0:00:10]} Be6 {[%emt 0:05:30] Threatens to win with ...Rfe8.} 19. exf8=Q+ {[%emt 0:01:13]} Bxf8 {[%emt 0:00:30]} 20. Bd3 {[%emt 0:00:51] Hoping for Qh5.} Bb4 $2 {[%emt 0:01:20]} (20... f5) 21. Qh5 {[%emt 0:00:34]} Bf8 $2 {[%emt 0:04:19]} (21... Bf5) 22. Qg6+ {[%emt 0:01:39]} Bg7 {[%emt 0:00:01]} 23. Rac1 {[%emt 0:00:45]} Bf7 {[%emt 0:00:28]} 24. Qh7+ {[%emt 0:00:08]} Kf8 {[%emt 0:00:00]} 25. Bc7 {[%emt 0:01:43]} (25. Rc7 $142 {Threatening mate with Ree7.} Ne6 {[#]} 26. Rxb7 $3 {[%mdl 512]}) 25... Bg8 {[%emt 0:00:50]} 26. Bxb6 {[%emt 0:00:15]} Bxh7 {[%emt 0:00:07]} (26... axb6 $142 27. Qg6 Bf7 28. Qxf7+ Kxf7 29. Rc7+ Kg8 30. Rxb7 Bf8) 27. Bc5+ {[%emt 0:00:33] Weighted Error Value: White=0.26 (precise) /Black=0.43} 1-0

[Event "FIDE WY-U16 Olympiad 2022"]
[Site "Nakhchivan"]
[Date "2022.10.05"]
[Round "4.7"]
[White "Nurmanova, Alua"]
[Black "Yavuz, Efe Metehan"]
[Result "1/2-1/2"]
[ECO "B12"]
[WhiteElo "2188"]
[BlackElo "2223"]
[Annotator "TA"]
[PlyCount "94"]
[EventDate "2022.10.02"]
[EventType "team-tourn"]
[EventCountry "AZE"]
[SourceTitle "playchess.com"]
[Source "ChessBase"]
[SourceQuality "1"]
[WhiteTeam "Kazakhstan"]
[BlackTeam "Turkey"]
[WhiteTeamCountry "KAZ"]
[BlackTeamCountry "TUR"]
[TimeControl "40/5400+30:1800+30"]

{[%evp 9,94,0,-4,-8,2,1,2,-26,-10,-9,-6,-38,-35,-39,-37,-54,-16,-66,-31,-42,-37,-37,0,0,1,-10,0,0,0,0,0,-8,-12,-37,0,-2,0,0,0,-25,-7,-21,-19,-56,-25,-36,0,0,0,0,20,22,23,16,58,0,0,0,0,-98,-98,-101,-101,-101,-102,-106,-86,-86,-86,-86,-86,-89,-64,-87,-60,-89,-91,-120,0,0,0,0,0,0,0,0,0]} 1. e4 {[%emt 0:00:02]} c6 {[%emt 0:00:23]} 2. d4 {[%emt 0:00:11]} d5 {[%emt 0:00:05]} 3. e5 {[%emt 0:00:07]} Bf5 {[%emt 0:00:09]} 4. h4 {[%emt 0:01:22]} h6 {[%emt 0:00:27]} 5. c4 {[%emt 0:05:56]} e6 {[%emt 0:04:26]} 6. Nc3 {[%emt 0:00:13] B12: Caro-Kann: Advance Variation.} Ne7 {[%emt 0:01:56]} 7. h5 {[%emt 0:10:46]} Nd7 {[%emt 0:06:45] [#]} 8. Be3 $146 {[%emt 0:09:08]} ({Predecessor:} 8. cxd5 Nxd5 9. Bc4 Nb4 10. Bb3 c5 11. Nge2 c4 12. Ba4 a6 13. Ng3 Bh7 14. O-O {0-1 (27) Michalek,J (2320)-Clery,N (2349) Czech Republic 2008}) 8... dxc4 {[%emt 0:07:29]} 9. Bxc4 {[%emt 0:02:47]} Nb6 {[%emt 0:04:15]} 10. Bb3 {[%emt 0:01:29]} (10. Bd3) 10... Ned5 {[%emt 0:00:40]} 11. g4 {[%emt 0:08:04]} Bh7 {[%emt 0:12:43]} 12. Nge2 {[%emt 0:03:22]} a5 {[%emt 0:06:45]} 13. a3 {[%emt 0:03:37]} (13. Nxd5 $11 Nxd5 14. Bxd5 Bb4+ 15. Kf1 Qxd5 16. Rh2) 13... Be7 {[%emt 0:02:19]} 14. Qd2 {[%emt 0:11:28]} a4 {[%emt 0:08:22]} 15. Ba2 {[%emt 0:00:13]} Nxc3 {[%emt 0:03:35]} 16. Nxc3 {[%emt 0:00:12]} Nd5 {[%emt 0:00:53]} 17. f4 {[%emt 0:16:17]} Qd7 {[%emt 0:12:11]} 18. O-O {[%emt 0:03:27]} g6 {[%emt 0:04:45]} 19. hxg6 {[%emt 0:01:41]} Bxg6 {[%emt 0:00:09]} 20. Bxd5 {[%emt 0:03:10]} cxd5 {[%emt 0:00:15]} 21. Qf2 {[%emt 0:00:49]} Rg8 {[%emt 0:01:17]} 22. Kh2 {[%emt 0:00:46]} Bd3 {[%emt 0:03:52][%csl LRf1,LRg4]} 23. Rg1 {[%emt 0:00:07]} O-O-O {[%emt 0:02:11]} 24. Rac1 {[%emt 0:04:36]} Kb8 {[%emt 0:00:52]} 25. Qd2 {[%emt 0:00:30]} Bc4 {[%emt 0:01:37]} 26. Ne4 {[%emt 0:01:29]} Qb5 {[%emt 0:02:45]} 27. Nc3 {[%emt 0:02:47]} Qb3 {[%emt 0:01:43]} 28. Rg3 {[%emt 0:02:06]} Bh4 {[%emt 0:01:20]} 29. Rg2 {[%emt 0:00:06]} Rg7 {[%emt 0:01:23]} 30. Kh3 {[%emt 0:00:40]} Be7 {[%emt 0:00:30]} 31. Bf2 {[%emt 0:01:14]} Rdg8 {[%emt 0:00:58]} 32. Rg3 {[%emt 0:00:26]} (32. Bh4 $14 Bxh4 33. Kxh4) 32... Qb6 $11 {[%emt 0:04:42]} 33. Nxa4 {[%emt 0:00:13]} Qa6 $36 {[%emt 0:02:00][%mdl 2048] Black has the initiative.} 34. Nc3 {[%emt 0:01:47]} (34. Qc2 $11 {keeps the balance.}) 34... Bf1+ $17 {[%mdl 64] [#] Deflection} 35. Kh2 {[%emt 0:00:49]} Rxg4 {[%emt 0:00:29]} 36. Rxg4 {[%emt 0:00:22]} Rxg4 {[%emt 0:00:03]} 37. Nd1 {[%emt 0:02:31] Strongly threatening Ne3.} Be2 {[%emt 0:04:06]} 38. Nc3 {[%emt 0:02:07]} Bd3 {[%emt 0:00:24]} 39. Rg1 {[%emt 0:00:29]} Rxg1 {[%emt 0:00:09]} 40. Bxg1 {[%emt 0:00:06]} Bc4 {[%emt 0:00:57]} 41. Qg2 {[%emt 0:30:27]} Qb6 {[%emt 0:01:32]} 42. Qg8+ {[%emt 0:00:00]} Ka7 {[%emt 0:00:12]} 43. b4 {[%emt 0:00:00]} Bh4 {[%emt 0:07:49]} (43... Qa6 $17 44. Qg3 (44. Qxf7 $2 Qxa3 45. Qxe7 Qb2+ 46. Kh1 Qxc3 $19) 44... h5) 44. Qxf7 $11 {[%emt 0:00:00] The position is equal.} Be1 {[%emt 0:00:20] A strong pair of Bishops.} 45. Nd1 {[%emt 0:00:00]} Be2 {[%emt 0:10:19]} 46. Ne3 {[%emt 0:00:00]} Bf3 {[%emt 0:04:26] Threatens to win with ...Qb5.} 47. Qe7 {[%emt 0:00:00]} Qa6 {[%emt 0:05:49] Weighted Error Value: White=0.14 (very precise) /Black=0.14 (very precise)} (47... Qxd4 $2 {[#]} 48. Nf5 $1 {[%mdl 512]} Qxg1+ 49. Kxg1 $18) 1/2-1/2

[Event "FIDE WY-U16 Olympiad 2022"]
[Site "Nakhchivan"]
[Date "2022.10.05"]
[Round "4.7"]
[White "Bargan, Victoria"]
[Black "Alizada, Pasham"]
[Result "0-1"]
[ECO "D85"]
[WhiteElo "1703"]
[BlackElo "1664"]
[Annotator "NA RC COMBH"]
[PlyCount "60"]
[EventDate "2022.10.02"]
[EventType "team-tourn"]
[EventCountry "AZE"]
[SourceTitle "playchess.com"]
[Source "ChessBase"]
[SourceQuality "1"]
[WhiteTeam "Moldova"]
[BlackTeam "Azerbaijan"]
[WhiteTeamCountry "MDA"]
[BlackTeamCountry "AZE"]
[TimeControl "40/5400+30:1800+30"]

1. d4 {[%emt 0:00:02]} Nf6 {[%emt 0:00:59]} 2. c4 {[%emt 0:00:05]} g6 {[%emt 0:00:18]} 3. Nc3 {[%emt 0:00:05]} d5 {[%emt 0:01:54]} 4. cxd5 {[%emt 0:02:50]} Nxd5 {[%emt 0:00:07]} 5. e4 {[%emt 0:00:15]} Nxc3 {[%emt 0:00:07]} 6. bxc3 {[%emt 0:00:03]} Bg7 {[%emt 0:00:13]} 7. Nf3 {[%emt 0:01:27]} c5 {[%emt 0:00:12]} 8. Be3 {[%emt 0:00:12]} Qa5 {[%emt 0:01:39]} 9. Qd2 {[%emt 0:00:09]} O-O {[%emt 0:00:20]} 10. Rc1 {[%emt 0:01:29]} Rd8 {[%emt 0:03:41]} 11. d5 {[%emt 0:10:51]} Nc6 {[%emt 0:05:31]} 12. c4 {[%emt 0:09:37]} Nb4 {[%emt 0:01:33]} 13. h4 {[%emt 0:23:59]} h5 {[%emt 0:04:36]} 14. Be2 {[%emt 0:03:30]} b6 {[%emt 0:02:37]} 15. Bg5 {[%emt 0:07:32]} f6 {[%emt 0:06:18]} 16. a3 {[%emt 0:05:38]} Qxa3 {[%emt 0:02:03]} 17. O-O {[%emt 0:00:44]} Qa2 {[%emt 0:03:10]} 18. Qe3 {[%emt 0:00:42]} fxg5 {[%emt 0:10:28]} 19. Qxg5 {[%emt 0:08:00]} Bg4 {[%emt 0:01:45]} 20. Bd1 {[%emt 0:05:33]} Qb2 {[%emt 0:05:47]} 21. e5 {[%emt 0:02:34]} Kh7 {[%emt 0:05:54]} 22. Qxe7 {[%emt 0:05:17]} Rd7 {[%emt 0:03:06]} 23. Ng5+ {[%emt 0:01:14]} Kg8 {[%emt 0:00:09]} 24. e6 {[%emt 0:03:39]} Rxe7 {[%emt 0:00:08]} 25. Bxg4 {[%emt 0:00:07]} hxg4 {[%emt 0:00:16]} 26. d6 {[%emt 0:00:17]} Rxe6 {[%emt 0:00:49]} 27. Nxe6 {[%emt 0:00:05]} Qe5 {[%emt 0:00:05]} 28. d7 {[%emt 0:01:27]} Qxe6 {[%emt 0:00:11]} 29. Rcd1 {[%emt 0:00:05]} Rd8 {[%emt 0:00:08]} 30. Rfe1 {[%emt 0:00:06]} Qf7 {[%emt 0:00:16]} 0-1